[Event "Polish Youth G18 Championship 2023"]
[Site "Jastrzebia Gora"]
[Date "2023.03.16"]
[Round "6.5"]
[White "Mroz, Lena"]
[Black "Krzyzosiak, Marta"]
[Result "0-1"]
[ECO "B09"]
[WhiteElo "1635"]
[BlackElo "1778"]
[Annotator "NA RC COMBH"]
[PlyCount "118"]
[EventDate "2023.03.11"]
[EventType "swiss"]
[EventCountry "POL"]
[SourceTitle "playchess.com"]
[Source "ChessBase"]
[SourceQuality "1"]
[TimeControl "40/5400+30:1800+30"]

1. e4 {[%emt 0:00:02]} d6 {[%emt 0:00:06]} 2. d4 {[%emt 0:00:22]} Nf6 {[%emt 0:00:08]} 3. Nc3 {[%emt 0:00:13]} g6 {[%emt 0:00:07]} 4. f4 {[%emt 0:01:24]} Bg7 {[%emt 0:00:20]} 5. Nf3 {[%emt 0:01:07]} O-O {[%emt 0:00:16]} 6. e5 {[%emt 0:02:13]} Nfd7 {[%emt 0:00:12]} 7. h4 {[%emt 0:05:40]} c5 {[%emt 0:00:07]} 8. h5 {[%emt 0:04:24]} cxd4 {[%emt 0:00:16]} 9. Qxd4 {[%emt 0:00:09]} dxe5 {[%emt 0:00:12]} 10. Qg1 {[%emt 0:02:53]} e4 {[%emt 0:05:31]} 11. Ng5 {[%emt 0:12:23]} Nf6 {[%emt 0:10:27]} 12. hxg6 {[%emt 0:04:06]} hxg6 {[%emt 0:01:08]} 13. Be3 {[%emt 0:27:35]} Bg4 {[%emt 0:14:12]} 14. Be2 {[%emt 0:02:05]} Bxe2 {[%emt 0:02:54]} 15. Nxe2 {[%emt 0:04:49]} Qa5+ {[%emt 0:10:39]} 16. Bd2 {[%emt 0:09:57]} Qb5 {[%emt 0:02:40]} 17. Bc3 {[%emt 0:00:53]} Rd8 {[%emt 0:06:08]} 18. Qh2 {[%emt 0:03:10]} Nc6 {[%emt 0:06:16]} 19. a3 {[%emt 0:12:55]} e3 {[%emt 0:05:02]} 20. Ne4 {[%emt 0:01:39]} Qa4 {[%emt 0:05:36]} 21. Nxf6+ {[%emt 0:00:34]} exf6 {[%emt 0:00:37]} 22. Rc1 {[%emt 0:01:04]} Rd7 {[%emt 0:04:40]} 23. g4 {[%emt 0:00:54]} Rad8 {[%emt 0:00:28]} 24. b3 {[%emt 0:00:28]} Qe4 {[%emt 0:01:06]} 25. O-O {[%emt 0:01:15]} Qd5 {[%emt 0:07:21]} 26. Ng3 {[%emt 0:00:31]} Nd4 {[%emt 0:01:25]} 27. Qg2 {[%emt 0:00:35]} Qxg2+ {[%emt 0:00:48]} 28. Kxg2 {[%emt 0:00:02]} Nb5 {[%emt 0:00:13]} 29. Bb4 {[%emt 0:00:40]} b6 {[%emt 0:01:14]} 30. a4 {[%emt 0:00:21]} Nd4 {[%emt 0:00:46]} 31. Bc3 {[%emt 0:00:41]} Rc8 {[%emt 0:01:26]} 32. Bxd4 {[%emt 0:00:18]} Rxd4 {[%emt 0:00:02]} 33. Kf3 {[%emt 0:00:14]} Rd2 {[%emt 0:00:47]} 34. Kxe3 {[%emt 0:01:06]} Rdxc2 {[%emt 0:00:10]} 35. Rxc2 {[%emt 0:00:12]} Rxc2 {[%emt 0:00:01]} 36. Ne2 {[%emt 0:00:37]} Rb2 {[%emt 0:01:34]} 37. Nc1 {[%emt 0:00:18]} Bf8 {[%emt 0:00:34]} 38. Ke4 {[%emt 0:01:02]} Rb1 {[%emt 0:02:27]} 39. Kd3 {[%emt 0:00:34]} Ba3 {[%emt 0:00:27]} 40. Kc2 {[%emt 0:00:00]} Rxc1+ {[%emt 0:00:00]} 41. Rxc1 {[%emt 0:00:10]} Bxc1 {[%emt 0:00:36]} 42. Kxc1 {[%emt 0:00:05]} Kf8 {[%emt 0:00:56]} 43. Kd2 {[%emt 0:00:27]} Ke7 {[%emt 0:03:12]} 44. Ke3 {[%emt 0:00:42]} Ke6 {[%emt 0:01:59]} 45. Ke4 {[%emt 0:00:20]} a5 {[%emt 0:01:06]} 46. Ke3 {[%emt 0:06:53]} f5 {[%emt 0:01:09]} 47. g5 {[%emt 0:03:32]} f6 {[%emt 0:00:32]} 48. gxf6 {[%emt 0:00:18]} Kxf6 {[%emt 0:00:05]} 49. Kd3 {[%emt 0:00:27]} g5 {[%emt 0:00:43]} 50. fxg5+ {[%emt 0:00:04]} Kxg5 {[%emt 0:00:04]} 51. Kc4 {[%emt 0:00:08]} f4 {[%emt 0:00:27]} 52. Kb5 {[%emt 0:00:03]} f3 {[%emt 0:00:05]} 53. Kxb6 {[%emt 0:00:03]} f2 {[%emt 0:00:08]} 54. Kxa5 {[%emt 0:00:03]} f1=Q {[%emt 0:00:09]} 55. b4 {[%emt 0:01:05]} Qf2 {[%emt 0:03:47]} 56. Ka6 {[%emt 0:01:06]} Qf6+ {[%emt 0:01:35]} 57. Ka5 {[%emt 0:06:11]} Qe7 {[%emt 0:00:35]} 58. b5 {[%emt 0:00:36]} Qa7+ {[%emt 0:00:04]} 59. Kb4 {[%emt 0:00:04]} Kf5 {[%emt 0:00:18]} 0-1

[Event "Polish Youth G18 Championship 2023"]
[Site "Jastrzebia Gora"]
[Date "2023.03.16"]
[Round "6.6"]
[White "Jedrzejko, Martyna"]
[Black "Arciszewska, Zuzanna"]
[Result "1/2-1/2"]
[ECO "C45"]
[WhiteElo "1629"]
[BlackElo "1750"]
[Annotator "NA RC COMBH"]
[PlyCount "75"]
[EventDate "2023.03.11"]
[EventType "swiss"]
[EventCountry "POL"]
[SourceTitle "playchess.com"]
[Source "ChessBase"]
[SourceQuality "1"]
[TimeControl "40/5400+30:1800+30"]

1. e4 {[%emt 0:00:04]} e5 {[%emt 0:00:18]} 2. Nf3 {[%emt 0:00:21]} Nc6 {[%emt 0:00:11]} 3. d4 {[%emt 0:00:25]} exd4 {[%emt 0:00:35]} 4. Nxd4 {[%emt 0:00:11]} Bc5 {[%emt 0:00:58]} 5. Nb3 {[%emt 0:00:39]} Bb6 {[%emt 0:00:28]} 6. Nc3 {[%emt 0:00:43]} d6 {[%emt 0:02:35]} 7. Qe2 {[%emt 0:01:33]} Nf6 {[%emt 0:04:15]} 8. Be3 {[%emt 0:00:47]} Be6 {[%emt 0:01:16]} 9. O-O-O {[%emt 0:01:22]} Qe7 {[%emt 0:04:48]} 10. f3 {[%emt 0:02:13]} O-O {[%emt 0:09:21]} 11. Kb1 {[%emt 0:12:19]} Rfd8 {[%emt 0:10:55]} 12. g4 {[%emt 0:06:34]} Ne5 {[%emt 0:07:13]} 13. g5 {[%emt 0:03:03]} Nfd7 {[%emt 0:01:29]} 14. Qf2 {[%emt 0:10:09]} a5 {[%emt 0:19:59]} 15. h3 {[%emt 0:07:43]} a4 {[%emt 0:09:03]} 16. Nd4 {[%emt 0:00:28]} Nc4 {[%emt 0:10:22]} 17. Bxc4 {[%emt 0:04:30]} Bxc4 {[%emt 0:00:02]} 18. Nf5 {[%emt 0:05:20]} Qe5 {[%emt 0:03:00]} 19. f4 {[%emt 0:03:19]} Bxe3 {[%emt 0:01:14]} 20. Qxe3 {[%emt 0:00:13]} Qc5 {[%emt 0:00:15]} 21. Qd4 {[%emt 0:07:53]} Qxd4 {[%emt 0:00:44]} 22. Rxd4 {[%emt 0:00:03]} Nb6 {[%emt 0:02:49]} 23. Ne3 {[%emt 0:03:01]} Be6 {[%emt 0:01:35]} 24. f5 {[%emt 0:00:37]} Bd7 {[%emt 0:00:13]} 25. h4 {[%emt 0:05:57]} Bc6 {[%emt 0:02:47]} 26. h5 {[%emt 0:11:56]} Ra5 {[%emt 0:01:37]} 27. Rg1 {[%emt 0:00:52]} Re8 {[%emt 0:01:25]} 28. Ng4 {[%emt 0:01:12]} Nd7 {[%emt 0:01:57]} 29. h6 {[%emt 0:03:19]} Ne5 {[%emt 0:02:21]} 30. hxg7 {[%emt 0:01:05]} Nxg4 {[%emt 0:00:39]} 31. Rxg4 {[%emt 0:00:09]} Kxg7 {[%emt 0:00:02]} 32. Kc1 {[%emt 0:00:48]} Rae5 {[%emt 0:00:53]} 33. Rh4 {[%emt 0:02:55]} b5 {[%emt 0:01:03]} 34. a3 {[%emt 0:00:23]} Bb7 {[%emt 0:00:32]} 35. Rb4 {[%emt 0:01:25]} Bc6 {[%emt 0:00:31]} 36. Rd4 {[%emt 0:02:54]} Bb7 {[%emt 0:00:11]} 37. Rb4 {[%emt 0:01:14]} Bc6 {[%emt 0:00:22]} 38. Rd4 {[%emt 0:01:04]} 1/2-1/2

[Event "Polish Youth G18 Championship 2023"]
[Site "Jastrzebia Gora"]
[Date "2023.03.16"]
[Round "6.7"]
[White "Uliasz, Katarzyna"]
[Black "Skolska, Emilia"]
[Result "0-1"]
[ECO "A08"]
[WhiteElo "1670"]
[BlackElo "1586"]
[Annotator "NA RC COMBH"]
[PlyCount "100"]
[EventDate "2023.03.11"]
[EventType "swiss"]
[EventCountry "POL"]
[SourceTitle "playchess.com"]
[Source "ChessBase"]
[SourceQuality "1"]
[TimeControl "40/5400+30:1800+30"]

1. g3 {[%emt 0:00:06]} d5 {[%emt 0:00:07]} 2. Nf3 {[%emt 0:01:09]} c5 {[%emt 0:00:29]} 3. Bg2 {[%emt 0:00:09]} Nc6 {[%emt 0:00:25]} 4. O-O {[%emt 0:01:12]} e5 {[%emt 0:00:25]} 5. d3 {[%emt 0:00:08]} f6 {[%emt 0:00:10]} 6. c4 {[%emt 0:05:25]} d4 {[%emt 0:01:19]} 7. e3 {[%emt 0:00:25]} Be6 {[%emt 0:01:37]} 8. exd4 {[%emt 0:00:25]} cxd4 {[%emt 0:00:07]} 9. Re1 {[%emt 0:04:43]} Qd7 {[%emt 0:02:55]} 10. a3 {[%emt 0:04:07]} a5 {[%emt 0:02:11]} 11. Nbd2 {[%emt 0:07:11]} O-O-O {[%emt 0:09:05]} 12. Qa4 {[%emt 0:04:48]} Qc7 {[%emt 0:05:42]} 13. Rb1 {[%emt 0:12:02]} Bd7 {[%emt 0:14:17]} 14. Qc2 {[%emt 0:03:23]} g5 {[%emt 0:01:18]} 15. c5 {[%emt 0:03:43]} h5 {[%emt 0:06:32]} 16. b4 {[%emt 0:03:01]} Be6 {[%emt 0:21:50]} 17. b5 {[%emt 0:13:54]} Nb8 {[%emt 0:00:06]} 18. c6 {[%emt 0:11:26]} bxc6 {[%emt 0:06:54]} 19. b6 {[%emt 0:03:34]} Qb7 {[%emt 0:00:26]} 20. Nc4 {[%emt 0:01:23]} Bxc4 {[%emt 0:01:36]} 21. Qxc4 {[%emt 0:00:06]} Rd7 {[%emt 0:10:22]} 22. Nd2 {[%emt 0:04:10]} Ne7 {[%emt 0:05:00]} 23. Nb3 {[%emt 0:03:48]} Qxb6 {[%emt 0:03:57]} 24. Bd2 {[%emt 0:00:34]} Qc7 {[%emt 0:03:48]} 25. Nxa5 {[%emt 0:02:22]} Nd5 {[%emt 0:00:39]} 26. Rb7 {[%emt 0:03:36]} Qd6 {[%emt 0:00:08]} 27. Bxd5 {[%emt 0:03:51]} Qxd5 {[%emt 0:00:44]} 28. Rxb8+ {[%emt 0:00:31]} Kxb8 {[%emt 0:00:07]} 29. Nxc6+ {[%emt 0:00:19]} Kc7 {[%emt 0:00:48]} 30. Ba5+ {[%emt 0:01:19]} Kd6 {[%emt 0:00:16]} 31. Bb4+ {[%emt 0:01:19]} Ke6 {[%emt 0:00:10]} 32. Qa6 {[%emt 0:00:52]} Kf7 {[%emt 0:00:30]} 33. Nb8 {[%emt 0:00:53]} Rc7 {[%emt 0:01:15]} 34. Ba5 {[%emt 0:00:38]} Rc2 {[%emt 0:00:40]} 35. Qa7+ {[%emt 0:00:48]} Kg6 {[%emt 0:00:37]} 36. Qb6 {[%emt 0:00:36]} Bd6 {[%emt 0:00:51]} 37. Na6 {[%emt 0:00:32]} Rc6 {[%emt 0:01:00]} 38. Qb7 {[%emt 0:00:29]} Qxa5 {[%emt 0:00:18]} 39. Nb4 {[%emt 0:00:17]} Bxb4 {[%emt 0:00:37]} 40. Qxc6 {[%emt 0:00:00]} Bxe1 {[%emt 0:00:00]} 41. Qe4+ {[%emt 0:00:36]} Kh6 {[%emt 0:01:12]} 42. f4 {[%emt 0:00:25]} Qd2 {[%emt 0:00:19]} 43. fxg5+ {[%emt 0:00:07]} Qxg5 {[%emt 0:00:38]} 44. Kg2 {[%emt 0:01:39]} Bd2 {[%emt 0:01:13]} 45. Qc6 {[%emt 0:00:24]} Rg8 {[%emt 0:00:56]} 46. Kf1 {[%emt 0:00:28]} Qf5+ {[%emt 0:00:56]} 47. Ke2 {[%emt 0:00:16]} Be3 {[%emt 0:00:10]} 48. Qg2 {[%emt 0:01:14]} Rc8 {[%emt 0:00:29]} 49. g4 {[%emt 0:01:09]} Rc2+ {[%emt 0:01:05]} 50. Kd1 {[%emt 0:00:07]} Qxd3+ {[%emt 0:00:10]} 0-1

[Event "Polish Youth G18 Championship 2023"]
[Site "Jastrzebia Gora"]
[Date "2023.03.16"]
[Round "6.8"]
[White "Labedz, Gabriela"]
[Black "Bugaj, Hanna"]
[Result "1/2-1/2"]
[ECO "B07"]
[WhiteElo "1425"]
[BlackElo "1639"]
[Annotator "NA RC COMBH"]
[PlyCount "71"]
[EventDate "2023.03.11"]
[EventType "swiss"]
[EventCountry "POL"]
[SourceTitle "playchess.com"]
[Source "ChessBase"]
[SourceQuality "1"]
[TimeControl "40/5400+30:1800+30"]

1. e4 {[%emt 0:00:02]} d6 {[%emt 0:00:08]} 2. d4 {[%emt 0:00:05]} Nf6 {[%emt 0:00:09]} 3. Nc3 {[%emt 0:00:08]} Nc6 {[%emt 0:00:11]} 4. g3 {[%emt 0:02:00]} g6 {[%emt 0:00:29]} 5. Bg2 {[%emt 0:00:52]} Bg7 {[%emt 0:00:19]} 6. Nge2 {[%emt 0:03:20]} e5 {[%emt 0:00:26]} 7. d5 {[%emt 0:05:47]} Ne7 {[%emt 0:00:34]} 8. O-O {[%emt 0:01:41]} O-O {[%emt 0:01:12]} 9. h3 {[%emt 0:03:11]} c6 {[%emt 0:03:53]} 10. Be3 {[%emt 0:03:08]} cxd5 {[%emt 0:05:53]} 11. Nxd5 {[%emt 0:02:48]} Nfxd5 {[%emt 0:02:34]} 12. exd5 {[%emt 0:00:15]} f5 {[%emt 0:01:49]} 13. Qd2 {[%emt 0:07:27]} b6 {[%emt 0:05:18]} 14. c4 {[%emt 0:04:41]} Ba6 {[%emt 0:24:11]} 15. Rac1 {[%emt 0:02:57]} Rc8 {[%emt 0:00:47]} 16. b3 {[%emt 0:01:28]} Rc7 {[%emt 0:08:51]} 17. f4 {[%emt 0:09:39]} e4 {[%emt 0:02:03]} 18. Bd4 {[%emt 0:03:41]} Bc8 {[%emt 0:03:30]} 19. Bxg7 {[%emt 0:02:26]} Kxg7 {[%emt 0:00:06]} 20. Nd4 {[%emt 0:01:23]} Bd7 {[%emt 0:03:04]} 21. Qb2 {[%emt 0:08:57]} Kf7 {[%emt 0:02:08]} 22. Qe2 {[%emt 0:08:12]} Ng8 {[%emt 0:03:47]} 23. g4 {[%emt 0:02:28]} Qf6 {[%emt 0:02:09]} 24. Rcd1 {[%emt 0:01:55]} Ne7 {[%emt 0:01:53]} 25. g5 {[%emt 0:03:32]} Qg7 {[%emt 0:01:15]} 26. Rfe1 {[%emt 0:01:00]} Kg8 {[%emt 0:01:39]} 27. h4 {[%emt 0:02:59]} h5 {[%emt 0:06:51]} 28. Rd2 {[%emt 0:04:00]} Rd8 {[%emt 0:01:27]} 29. Qe3 {[%emt 0:02:58]} Nc8 {[%emt 0:02:39]} 30. Bf1 {[%emt 0:02:07]} Ne7 {[%emt 0:01:29]} 31. b4 {[%emt 0:02:53]} Qf7 {[%emt 0:04:03]} 32. a4 {[%emt 0:01:24]} Rdc8 {[%emt 0:00:57]} 33. Qb3 {[%emt 0:02:10]} Kf8 {[%emt 0:04:03]} 34. b5 {[%emt 0:01:02]} Ra8 {[%emt 0:01:42]} 35. Qa3 {[%emt 0:01:56]} Nc8 {[%emt 0:00:32]} 36. Qb4 {[%emt 0:01:42]} 1/2-1/2

[Event "Polish Youth G18 Championship 2023"]
[Site "Jastrzebia Gora"]
[Date "2023.03.16"]
[Round "6.9"]
[White "Gaczol, Julia"]
[Black "Obrochta, Lena"]
[Result "1/2-1/2"]
[ECO "B42"]
[WhiteElo "1419"]
[BlackElo "1673"]
[Annotator "NA RC COMBH"]
[PlyCount "117"]
[EventDate "2023.03.11"]
[EventType "swiss"]
[EventCountry "POL"]
[SourceTitle "playchess.com"]
[Source "ChessBase"]
[SourceQuality "1"]
[TimeControl "40/5400+30:1800+30"]

1. e4 {[%emt 0:00:01]} c5 {[%emt 0:00:05]} 2. Nf3 {[%emt 0:00:21]} e6 {[%emt 0:00:07]} 3. d4 {[%emt 0:00:03]} cxd4 {[%emt 0:00:12]} 4. Nxd4 {[%emt 0:00:05]} a6 {[%emt 0:00:07]} 5. Bd3 {[%emt 0:00:09]} Bc5 {[%emt 0:00:15]} 6. Nb3 {[%emt 0:00:24]} Be7 {[%emt 0:00:05]} 7. Qg4 {[%emt 0:00:06]} g6 {[%emt 0:00:52]} 8. Qe2 {[%emt 0:00:31]} d6 {[%emt 0:00:57]} 9. O-O {[%emt 0:01:40]} Nd7 {[%emt 0:00:47]} 10. a4 {[%emt 0:01:46]} b6 {[%emt 0:05:34]} 11. Na3 {[%emt 0:06:55]} Qc7 {[%emt 0:08:09]} 12. Nc4 {[%emt 0:03:35]} Bb7 {[%emt 0:03:01]} 13. Be3 {[%emt 0:07:30]} Ngf6 {[%emt 0:13:18]} 14. a5 {[%emt 0:04:01]} b5 {[%emt 0:02:05]} 15. Nb6 {[%emt 0:00:23]} Rb8 {[%emt 0:07:12]} 16. c4 {[%emt 0:11:03]} b4 {[%emt 0:10:26]} 17. Qd2 {[%emt 0:17:16]} Nxe4 {[%emt 0:10:31]} 18. Bxe4 {[%emt 0:07:15]} Bxe4 {[%emt 0:00:11]} 19. Qxb4 {[%emt 0:00:22]} Bb7 {[%emt 0:10:11]} 20. Rac1 {[%emt 0:04:14]} O-O {[%emt 0:07:38]} 21. Rfd1 {[%emt 0:03:19]} e5 {[%emt 0:06:53]} 22. Qc3 {[%emt 0:09:18]} Nf6 {[%emt 0:05:45]} 23. f4 {[%emt 0:13:24]} Ng4 {[%emt 0:04:16]} 24. fxe5 {[%emt 0:01:03]} dxe5 {[%emt 0:01:44]} 25. h3 {[%emt 0:03:24]} Bb4 {[%emt 0:00:06]} 26. Qxb4 {[%emt 0:01:33]} Nxe3 {[%emt 0:00:05]} 27. Rd2 {[%emt 0:01:55]} Rfd8 {[%emt 0:00:34]} 28. Qc5 {[%emt 0:01:03]} Qxc5 {[%emt 0:02:34]} 29. Rxd8+ {[%emt 0:00:09]} Rxd8 {[%emt 0:00:24]} 30. Nxc5 {[%emt 0:00:04]} Bc6 {[%emt 0:00:50]} 31. Re1 {[%emt 0:01:57]} Nxg2 {[%emt 0:00:25]} 32. Rxe5 {[%emt 0:00:06]} Nf4 {[%emt 0:00:16]} 33. h4 {[%emt 0:00:41]} Rd2 {[%emt 0:00:50]} 34. Nd5 {[%emt 0:01:09]} Nxd5 {[%emt 0:00:31]} 35. cxd5 {[%emt 0:00:15]} Bxd5 {[%emt 0:00:04]} 36. Nxa6 {[%emt 0:00:55]} Bc4 {[%emt 0:00:27]} 37. Nc7 {[%emt 0:00:25]} Rxb2 {[%emt 0:00:18]} 38. Re8+ Kg7 {[%emt 0:00:09]} 39. Re4 {[%emt 0:00:51]} Bd3 {[%emt 0:00:29]} 40. Ra4 {[%emt 0:00:00]} Rc2 {[%emt 0:00:00]} 41. Nd5 {[%emt 0:05:41]} Bb5 {[%emt 0:04:17]} 42. Ra3 {[%emt 0:05:58]} h5 {[%emt 0:06:23]} 43. a6 {[%emt 0:01:49]} Bxa6 {[%emt 0:01:54]} 44. Rxa6 {[%emt 0:00:19]} Rc4 {[%emt 0:00:04]} 45. Kg2 {[%emt 0:00:24]} Rxh4 {[%emt 0:00:13]} 46. Kg3 {[%emt 0:00:23]} Rd4 {[%emt 0:00:32]} 47. Nf4 {[%emt 0:06:41]} Rc4 {[%emt 0:03:06]} 48. Ra5 {[%emt 0:02:53]} Kh6 {[%emt 0:01:23]} 49. Ra6 {[%emt 0:01:46]} Rc5 {[%emt 0:04:18]} 50. Rf6 {[%emt 0:02:14]} Rc3+ {[%emt 0:02:49]} 51. Kh4 {[%emt 0:01:34]} Kg7 {[%emt 0:02:02]} 52. Rb6 {[%emt 0:04:51]} Rf3 {[%emt 0:06:25]} 53. Nxh5+ {[%emt 0:01:51]} gxh5 {[%emt 0:00:10]} 54. Kxh5 {[%emt 0:00:02]} Rg3 {[%emt 0:01:01]} 55. Kh4 {[%emt 0:01:16]} Rg1 {[%emt 0:00:19]} 56. Kh5 {[%emt 0:00:44]} f5 {[%emt 0:01:41]} 57. Kh4 {[%emt 0:00:20]} Rg6 {[%emt 0:02:37]} 58. Rxg6+ {[%emt 0:00:20]} Kxg6 {[%emt 0:00:06]} 59. Kg3 {[%emt 0:00:03]} 1/2-1/2

[Event "Polish Youth G18 Championship 2023"]
[Site "Jastrzebia Gora"]
[Date "2023.03.16"]
[Round "6.10"]
[White "Czerwinska, Oliwia"]
[Black "Bukala, Weronika"]
[Result "0-1"]
[ECO "B12"]
[WhiteElo "1369"]
[BlackElo "1899"]
[Annotator "NA RC COMBH"]
[PlyCount "120"]
[EventDate "2023.03.11"]
[EventType "swiss"]
[EventCountry "POL"]
[SourceTitle "playchess.com"]
[Source "ChessBase"]
[SourceQuality "1"]
[TimeControl "40/5400+30:1800+30"]

{[%evp 12,120,0,32767,-6,0,0,0,0,32767,18,0,8,32767,35,0,-29,32767,-83,32767,-111,32767,-75,-75,32767,-79,32767,-138,32767,32767,-121,32767,32767,32767,32767,-124,-12,32767,19,41,17,10,32767,32767,32767,32767,8,32767,0,-7,15,32767,32767,0,39,32767,32767,13,32767,7,17,11,32767,32767,32767,-74,-67,-166,32767,32767,32767,-302,32767,32767,-419,32767,32767,32767,32767,32767,32767,32767,32767,32767,32767,-757,-441,32767,-775,-795,32767,-898,-2183,-12841,-7384,-12845,-12840,-29962,-29983,-29984,-29988,-29988,-29989,-29989,-29989,-29988,-29990,-29990,-29991,-29991,-29992]} 1. e4 {[%emt 0:00:03]} c6 {[%emt 0:00:04]} 2. d4 {[%emt 0:00:04]} d5 {[%emt 0:00:05]} 3. e5 {[%emt 0:00:07]} Bf5 {[%emt 0:00:36]} 4. Nd2 {[%emt 0:00:19]} e6 {[%emt 0:00:28]} 5. Nb3 {[%emt 0:00:23]} Nd7 {[%emt 0:00:15]} 6. f4 {[%emt 0:01:49]} h5 {[%emt 0:15:12]} 7. Nf3 {[%emt 0:02:52]} Be7 {[%emt 0:01:02]} 8. c3 {[%emt 0:03:44]} Nh6 {[%emt 0:01:27]} 9. Be2 {[%emt 0:02:18]} Bg6 {[%emt 0:01:16]} 10. Be3 {[%emt 0:05:00]} Rc8 {[%emt 0:07:04]} 11. O-O {[%emt 0:03:58]} b6 {[%emt 0:07:03]} 12. Rc1 {[%emt 0:04:14]} b5 {[%emt 0:09:45]} 13. a3 {[%emt 0:08:13]} Nb6 {[%emt 0:06:32]} 14. Bf2 {[%emt 0:06:40]} Nc4 {[%emt 0:01:13]} 15. Bxc4 {[%emt 0:07:17]} bxc4 {[%emt 0:00:05]} 16. Nc5 {[%emt 0:02:10]} Ng4 {[%emt 0:07:27]} 17. b4 {[%emt 0:10:41]} cxb3 {[%emt 0:00:11]} 18. Qxb3 {[%emt 0:03:05]} Qb6 {[%emt 0:03:20]} 19. Qxb6 {[%emt 0:02:36]} (19. Qb4 $15) 19... axb6 {[%emt 0:00:08]} 20. Na4 {[%emt 0:01:46]} Rb8 {[%emt 0:19:50]} ({Not} 20... Bxa3 21. Ra1 Bf8 22. Nxb6 $11) (20... b5 $19 21. Nc5 Ra8) 21. Ra1 {[%emt 0:01:44]} O-O {[%emt 0:00:25]} 22. h3 {[%emt 0:00:53]} Nxf2 {[%emt 0:00:12]} 23. Rxf2 {[%emt 0:00:16]} c5 {[%emt 0:05:27]} (23... Be4 $17 24. Ng5 Bg6) 24. Rb2 {[%emt 0:02:42]} Ra8 {[%emt 0:03:05]} 25. Nxb6 {[%emt 0:02:05]} Ra7 {[%emt 0:00:09]} 26. a4 {[%emt 0:00:45]} Rb8 {[%emt 0:01:46]} 27. a5 {[%emt 0:00:10]} Bd3 {[%emt 0:01:50]} 28. Ne1 {[%emt 0:01:41]} Be4 {[%emt 0:00:57]} 29. Rb5 {[%emt 0:01:11]} cxd4 {[%emt 0:00:37]} 30. cxd4 {[%emt 0:00:06]} Bd8 {[%emt 0:00:18]} 31. Rc1 {[%emt 0:01:32]} Ra6 {[%emt 0:02:27]} 32. Rc6 {[%emt 0:03:27]} Bh4 {[%emt 0:00:09]} (32... g5 $11) 33. Kf1 {[%emt 0:03:20]} Bg3 {[%emt 0:00:29]} 34. Ke2 {[%emt 0:04:28]} Bxf4 {[%emt 0:00:07]} 35. Nd3 {[%emt 0:01:58]} Bxd3+ $1 {[%emt 0:01:33]} 36. Kxd3 {[%emt 0:00:04]} Kh7 {[%emt 0:00:41]} 37. Rc8 {[%emt 0:02:00]} Rb7 {[%emt 0:00:55]} 38. Rbc5 {[%emt 0:00:44] [#]} (38. Rc6 $11 {remains equal.}) 38... Rba7 $1 {[%emt 0:00:29]} 39. R8c7 {[%emt 0:00:58]} (39. Rf8 $17) 39... Rxa5 {[%emt 0:00:59]} 40. Rxa5 {[%emt 0:00:00]} Rxc7 {[%emt 0:00:00]} 41. Rc5 {[%emt 0:06:03]} (41. Ra1 {was worth a try.}) 41... Bxe5 {[%emt 0:02:53]} 42. Nc8 {[%emt 0:06:10]} Bg3 {[%emt 0:01:45]} 43. Rxc7 {[%emt 0:00:55]} Bxc7 {[%emt 0:00:05]} 44. Ne7 {[%emt 0:00:08]} Kh6 {[%emt 0:00:30]} 45. Ke3 {[%emt 0:00:43]} f5 {[%emt 0:00:55]} 46. Kf3 {[%emt 0:03:06]} h4 {[%emt 0:02:07]} 47. Nc6 {[%emt 0:00:46]} g5 {[%emt 0:00:39]} 48. Nb4 {[%emt 0:00:40]} Kh5 {[%emt 0:00:18]} 49. Nc2 {[%emt 0:02:03]} g4+ {[%emt 0:00:32]} 50. Kf2 {[%emt 0:01:14]} Kg5 {[%emt 0:00:22]} 51. Ke3 {[%emt 0:01:55]} Bb6 {[%emt 0:00:46]} 52. hxg4 {[%emt 0:02:17]} fxg4 {[%emt 0:01:08]} 53. Ke2 {[%emt 0:03:15]} Kf4 {[%emt 0:00:38]} 54. Kf1 {[%emt 0:00:33]} Ke4 {[%emt 0:00:20]} 55. g3 {[%emt 0:01:42]} h3 {[%emt 0:00:10]} 56. Kg1 {[%emt 0:01:15]} Bxd4+ {[%emt 0:00:08]} 57. Kh2 {[%emt 0:00:21]} Bc3 {[%emt 0:00:15]} 58. Na3 {[%emt 0:00:34]} d4 {[%emt 0:00:09]} 59. Nb5 {[%emt 0:00:18]} Bb4 {[%emt 0:00:13]} 60. Nxd4 {[%emt 0:00:28]} Kxd4 0-1

[Event "Polish Youth G18 Championship 2023"]
[Site "Jastrzebia Gora"]
[Date "2023.03.16"]
[Round "6.11"]
[White "Lochina, Justyna"]
[Black "Bychowska, Marta"]
[Result "1/2-1/2"]
[ECO "C48"]
[WhiteElo "1645"]
[BlackElo "1388"]
[Annotator "NA RC COMBH"]
[PlyCount "61"]
[EventDate "2023.03.11"]
[EventType "swiss"]
[EventCountry "POL"]
[SourceTitle "playchess.com"]
[Source "ChessBase"]
[SourceQuality "1"]
[TimeControl "40/5400+30:1800+30"]

1. e4 {[%emt 0:00:03]} e5 {[%emt 0:00:05]} 2. Nf3 {[%emt 0:00:16]} Nf6 {[%emt 0:00:05]} 3. Nc3 {[%emt 0:03:05]} Nc6 {[%emt 0:00:06]} 4. Bb5 {[%emt 0:01:56]} Nd4 {[%emt 0:02:26]} 5. Bc4 {[%emt 0:14:02]} Nxf3+ {[%emt 0:02:18]} 6. Qxf3 {[%emt 0:00:24]} Bc5 {[%emt 0:00:17]} 7. d3 {[%emt 0:17:48]} O-O {[%emt 0:01:49]} 8. Bg5 {[%emt 0:11:02]} Be7 {[%emt 0:00:20]} 9. Bxf6 {[%emt 0:00:35]} Bxf6 {[%emt 0:01:19]} 10. Nd5 {[%emt 0:04:06]} d6 {[%emt 0:02:15]} 11. O-O {[%emt 0:02:52]} c6 {[%emt 0:00:05]} 12. Nxf6+ {[%emt 0:00:30]} Qxf6 {[%emt 0:00:07]} 13. Qxf6 {[%emt 0:03:39]} gxf6 {[%emt 0:00:58]} 14. f4 {[%emt 0:03:56]} Be6 {[%emt 0:00:55]} 15. Bb3 Bxb3 16. axb3 {[%emt 0:00:57]} a6 {[%emt 0:00:43]} 17. Rae1 {[%emt 0:19:36]} Rae8 {[%emt 0:00:40]} 18. Re3 {[%emt 0:01:53]} Re7 {[%emt 0:02:08]} 19. g4 {[%emt 0:05:48]} Kg7 {[%emt 0:01:45]} 20. h4 {[%emt 0:02:32]} h6 {[%emt 0:01:29]} 21. Rg3 {[%emt 0:01:49]} Re6 {[%emt 0:00:58]} 22. g5 {[%emt 0:02:26]} hxg5 {[%emt 0:00:59]} 23. f5 {[%emt 0:01:01]} Ree8 {[%emt 0:00:08]} 24. hxg5 {[%emt 0:00:47]} fxg5 {[%emt 0:00:14]} 25. f6+ {[%emt 0:01:13]} Kh6 {[%emt 0:00:35]} 26. Rf5 {[%emt 0:00:31]} Rg8 {[%emt 0:00:27]} 27. Rh3+ {[%emt 0:00:21]} Kg6 {[%emt 0:00:04]} 28. Rg3 {[%emt 0:00:20]} Kh5 {[%emt 0:01:30]} 29. Rh3+ {[%emt 0:00:29]} Kg6 {[%emt 0:00:10]} 30. Rg3 {[%emt 0:00:11]} Kh5 {[%emt 0:00:09]} 31. Rh3+ {[%emt 0:00:21]} 1/2-1/2